bitfinex/quotes_BTCUSD_20240719
["timestamp","ask_amount","ask_price","bid_price","bid_amount"]
[1721416324435,0.2181,67055.0,67042.0,0.000924]
[1721416324641,0.02208548,67054.0,67042.0,0.000924]
[1721416324836,0.02208548,67054.0,67043.0,0.04799247]
[1721416325038,0.02208548,67054.0,67042.0,0.000924]
[1721416325039,0.02208548,67054.0,67046.0,0.04799247]
[1721416325497,0.02203729,67053.0,67046.0,0.04799247]
[1721416325741,0.02203729,67052.0,67046.0,0.04799247]
[1721416325952,0.02203729,67051.0,67046.0,0.04799247]
[1721416326120,0.03843948,67056.0,67046.0,0.04799247]
[1721416326121,0.02203729,67050.0,67046.0,0.04799247]
[1721416326324,0.02203729,67049.0,67043.0,0.19714947]
[1721416326525,0.03843948,67056.0,67044.0,0.04799247]
[1721416326526,0.02203729,67048.0,67044.0,0.04799247]
[1721416326727,0.02203729,67047.0,67044.0,0.04799247]
[1721416326927,0.03843948,67056.0,67050.0,0.04799247]
[1721416327172,0.02203951,67055.0,67050.0,0.04799247]
[1721416327379,0.02203951,67054.0,67052.0,0.04799247]
[1721416327583,0.06717,67059.0,67054.0,0.04799247]
[1721416327766,0.06071952,67058.0,67054.0,0.04799247]
[1721416327897,0.06071952,67058.0,67050.0,0.149142]
[1721416327898,0.02203737,67057.0,67052.0,0.04799247]
[1721416328104,0.02203737,67056.0,67050.0,0.04799247]
[1721416328308,0.02203737,67055.0,67052.0,0.04799247]
[1721416328528,0.02203737,67054.0,67052.0,0.04799247]
[1721416328725,0.02203737,67054.0,67048.0,0.231946]
[1721416328726,0.008,67056.0,67054.0,0.04799247]
[1721416328940,0.0219887,67055.0,67054.0,0.04899247]
[1721416329519,0.009,67057.0,67056.0,0.13079247]
[1721416329739,0.02199856,67057.0,67054.0,0.001]
[1721416329937,0.02999856,67056.0,67054.0,0.002]
[1721416330138,0.02199856,67055.0,67054.0,0.04999247]
[1721416330777,0.02199856,67055.0,67054.0,0.79465947]
[1721416331158,0.02199856,67055.0,67054.0,0.79365947]
[1721416331686,0.009,67057.0,67056.0,0.447387]
[1721416331879,0.03101102,67057.0,67056.0,0.79363747]
[1721416332112,0.02201102,67057.0,67056.0,0.79363747]
[1721416332259,0.00707,67059.0,67058.0,0.04799247]
[1721416332463,0.00707,67059.0,67058.0,0.49536547]
[1721416332659,0.00707,67059.0,67058.0,1.09186347]
[1721416332920,0.02906722,67059.0,67058.0,1.09186347]
[1721416334634,0.03306722,67059.0,67058.0,1.09186347]
[1721416334851,0.03706722,67059.0,67058.0,1.09186347]
[1721416335004,0.03704172,67059.0,67058.0,1.09186347]
[1721416335575,0.01507,67059.0,67058.0,1.09186347]
[1721416336153,0.03705919,67059.0,67058.0,1.09186347]
[1721416336583,0.03705919,67059.0,67050.0,0.29799247]
[1721416336783,0.03705919,67059.0,67053.0,0.149133]
[1721416336784,0.02198919,67058.0,67053.0,0.149133]
[1721416336979,0.02198919,67058.0,67054.0,0.149132]
[1721416337206,0.02198919,67058.0,67057.0,0.04799247]
[1721416337381,0.02198919,67058.0,67057.0,0.19711847]
[1721416337764,0.02198919,67058.0,67057.0,0.149126]
[1721416337974,0.02198919,67058.0,67055.0,0.14913]
[1721416338193,0.02498919,67058.0,67055.0,0.04799247]
[1721416338405,0.02198919,67057.0,67056.0,0.49537947]
[1721416338631,0.02198919,67057.0,67056.0,0.79363747]
[1721416338842,0.02198919,67057.0,67056.0,1.09189547]
[1721416339039,0.02198919,67057.0,67056.0,0.79363747]
[1721416340265,0.02198919,67057.0,67056.0,0.85953747]
[1721416340930,0.02202652,67058.0,67057.0,0.64449847]
[1721416341131,0.02502651,67058.0,67057.0,0.04799247]
[1721416341424,0.02504636,67058.0,67057.0,0.49537147]
[1721416341664,0.02504636,67058.0,67057.0,0.79362447]
[1721416341838,0.02204636,67058.0,67057.0,0.79362447]
[1721416342061,0.02204636,67058.0,67057.0,1.09187747]
[1721416342273,0.02504636,67058.0,67057.0,1.32795921]
[1721416342467,0.003,67058.0,67057.0,1.32795921]
[1721416342717,0.02504971,67058.0,67057.0,1.32795921]
[1721416343176,0.003,67058.0,67057.0,1.32795921]
[1721416343365,0.006,67058.0,67057.0,1.32795921]
[1721416343705,0.00707,67059.0,67058.0,1.09186347]
[1721416343923,0.00707,67059.0,67058.0,1.19825274]
[1721416344098,0.00707,67059.0,67058.0,1.24624521]
[1721416345018,0.00707,67059.0,67058.0,1.24814521]
[1721416345420,0.00707,67059.0,67058.0,1.20015274]
[1721416345759,0.00707,67059.0,67058.0,1.24814521]
[1721416349030,0.00707,67059.0,67058.0,1.54439421]
[1721416350372,0.00707,67059.0,67058.0,1.55839421]
[1721416350817,0.00807,67059.0,67058.0,1.27414521]
[1721416351020,0.00807,67059.0,67058.0,0.97589621]
[1721416351467,0.00807,67059.0,67058.0,1.26014521]
[1721416351673,0.00807,67059.0,67058.0,1.27414521]
[1721416351878,0.00807,67059.0,67058.0,0.028]
[1721416352081,0.00807,67059.0,67058.0,0.22511647]
[1721416352248,0.03006722,67059.0,67058.0,0.82161447]
[1721416352686,0.02906722,67059.0,67058.0,0.80761447]
[1721416354135,0.00807,67059.0,67058.0,0.80361447]
[1721416354430,0.00807,67059.0,67058.0,0.80561447]
[1721416354619,0.00707,67059.0,67058.0,0.79361447]
[1721416354831,0.00807,67059.0,67058.0,0.79961447]
[1721416355043,0.00907,67059.0,67058.0,0.80561447]
[1721416355730,0.0311122,67059.0,67058.0,0.80561447]
[1721416356493,0.01831708,67059.0,67058.0,0.80561447]
[1721416356693,0.0108461,67064.0,67062.0,0.19710647]
[1721416356904,0.0633,67066.0,67062.0,0.19710647]
[1721416357566,0.0633,67066.0,67064.0,0.04799247]
[1721416357980,0.0653,67066.0,67065.0,0.009892]
[1721416358851,0.0633,67066.0,67065.0,0.009892]
[1721416359057,0.0633,67066.0,67065.0,0.05788447]
[1721416359268,0.0633,67066.0,67065.0,0.20699347]
[1721416359269,0.0148118,67066.0,67065.0,0.20699347]
[1721416359488,0.0148118,67066.0,67065.0,0.50521147]
[1721416359913,0.0148118,67066.0,67065.0,0.159001]
[1721416360128,0.0148118,67066.0,67065.0,0.20699347]
[1721416360372,0.0148118,67066.0,67065.0,0.159001]
[1721416360624,0.0128118,67066.0,67065.0,0.159001]
[1721416361084,0.0148118,67066.0,67065.0,0.159001]
[1721416361316,0.0148118,67066.0,67065.0,0.009892]
[1721416362043,0.0148118,67066.0,67065.0,0.05788447]
[1721416362244,0.0148118,67066.0,67065.0,0.009892]
[1721416362417,0.0148118,67066.0,67065.0,0.20699347]
[1721416362626,0.0148118,67066.0,67065.0,0.50521147]
[1721416362822,0.0148118,67066.0,67065.0,0.457219]
[1721416363003,0.0148118,67066.0,67065.0,0.009892]
[1721416363235,0.0148118,67066.0,67065.0,0.457219]
[1721416363665,0.0148118,67066.0,67065.0,0.50521147]
[1721416366543,0.03630152,67066.0,67065.0,0.50521147]
[1721416366948,0.02548972,67066.0,67065.0,0.50521147]
[1721416367180,0.02548972,67066.0,67065.0,0.80342947]
[1721416367181,0.02548765,67066.0,67065.0,0.80342947]
[1721416367773,0.02548517,67066.0,67065.0,0.80342947]
[1721416370495,0.02549015,67066.0,67065.0,0.80342947]
[1721416371072,0.02549015,67066.0,67065.0,0.457219]
[1721416371698,0.02549015,67066.0,67065.0,0.009892]
[1721416372102,0.02549015,67066.0,67065.0,0.05788447]
[1721416372443,0.02549015,67066.0,67065.0,0.20699347]
[1721416373790,0.02547355,67066.0,67065.0,0.159001]
[1721416375436,0.02547355,67066.0,67065.0,0.009892]
[1721416375611,0.02547355,67066.0,67065.0,0.05788447]
[1721416376811,0.02547355,67066.0,67065.0,0.20699347]
[1721416377002,0.02547211,67066.0,67065.0,0.20699347]
[1721416377342,0.02547211,67066.0,67065.0,0.94722947]
[1721416377500,0.02631211,67066.0,67065.0,0.94722947]
[1721416379912,0.00484,67066.0,67065.0,0.94722947]
[1721416380338,0.02629577,67066.0,67065.0,0.94722947]
[1721416380687,0.02629577,67066.0,67065.0,0.88642947]
[1721416380978,0.02629577,67066.0,67065.0,0.80342947]
[1721416382399,0.02629577,67066.0,67065.0,0.457219]
[1721416382795,0.02629437,67066.0,67065.0,0.457219]
[1721416384546,0.02629437,67066.0,67065.0,0.50521147]
[1721416384838,0.02629437,67066.0,67065.0,0.80342947]
[1721416385981,0.00484,67066.0,67065.0,0.80342947]
[1721416386164,0.02626493,67066.0,67065.0,0.80342947]
[1721416386593,0.02626515,67066.0,67065.0,0.80342947]
[1721416389220,0.02628392,67066.0,67065.0,0.80342947]
[1721416392448,0.02628957,67066.0,67065.0,0.80342947]
[1721416393683,0.02614057,67066.0,67065.0,0.80342947]
[1721416394848,0.02614057,67066.0,67065.0,0.92725414]
[1721416395810,0.01590429,67066.0,67065.0,0.92725414]
[1721416399048,0.01592773,67066.0,67065.0,0.92725414]
[1721416402075,0.01589227,67066.0,67065.0,0.92725327]
[1721416403413,0.01589227,67066.0,67065.0,0.93725327]
[1721416405288,0.01589227,67066.0,67065.0,0.9372541]
[1721416405289,0.01592622,67066.0,67065.0,0.9372541]
[1721416407962,0.01592622,67066.0,67065.0,1.68807184]
[1721416408171,0.004691,67066.0,67065.0,1.82877184]
[1721416408379,0.004691,67066.0,67065.0,2.17698984]
[1721416408600,0.004691,67066.0,67065.0,2.38034649]
[1721416408777,0.004691,67066.0,67065.0,2.61265312]
[1721416409241,0.004691,67066.0,67065.0,2.65681536]
[1721416410071,0.002691,67066.0,67065.0,2.65681536]
[1721416410245,0.003691,67066.0,67065.0,2.40465108]
[1721416410443,0.00184,67066.0,67065.0,2.40465108]
[1721416410600,0.00184,67066.0,67065.0,2.40557508]
[1721416410807,0.00084,67066.0,67065.0,2.39557508]
[1721416411144,0.00184,67066.0,67065.0,2.39888437]
[1721416411537,0.00184,67066.0,67065.0,2.40657508]
[1721416411743,0.00184,67066.0,67065.0,2.27608921]
[1721416411901,0.00184,67066.0,67065.0,2.41757266]
[1721416412106,0.00184,67066.0,67065.0,2.399882]
[1721416412303,0.00184,67066.0,67065.0,2.44988221]
[1721416413106,0.00184,67066.0,67065.0,3.03224408]
[1721416413307,0.00084,67066.0,67065.0,2.95509944]
[1721416413512,0.00084,67066.0,67065.0,2.96561401]
[1721416413757,0.00084,67066.0,67065.0,3.31483201]
[1721416413758,0.00184,67066.0,67065.0,3.31483201]
[1721416413959,0.00184,67066.0,67065.0,3.50308135]
[1721416414163,0.00084,67066.0,67065.0,3.23014251]
[1721416414366,0.00084,67066.0,67065.0,3.40283201]
[1721416414711,0.00184,67066.0,67065.0,3.43083201]
[1721416414910,0.00184,67066.0,67065.0,4.08701353]
[1721416415079,0.00184,67066.0,67065.0,4.21078954]
[1721416415275,0.00184,67066.0,67065.0,3.76068888]
[1721416416259,0.00184,67066.0,67065.0,3.71759779]
[1721416417279,0.00184,67066.0,67065.0,3.76163968]
[1721416418081,0.00837,67075.0,67074.0,2.02387147]
[1721416418287,0.00837,67084.0,67082.0,0.59520547]
[1721416418486,0.00837,67084.0,67082.0,2.0963792]
[1721416418725,0.00837,67084.0,67082.0,2.6926632]
[1721416419085,0.00837,67084.0,67082.0,3.08913556]
[1721416419378,0.00837,67084.0,67082.0,2.73662725]
[1721416419570,0.00837,67084.0,67082.0,2.80281953]
[1721416419688,0.00837,67084.0,67082.0,3.05281953]
[1721416419893,0.00837,67084.0,67082.0,3.00962725]
[1721416420087,0.00837,67084.0,67082.0,3.77885548]
[1721416420287,0.00837,67084.0,67082.0,3.02285548]
[1721416420911,0.00837,67084.0,67082.0,2.9796632]
[1721416421315,0.00837,67084.0,67082.0,2.85589721]
[1721416421518,0.00837,67084.0,67082.0,2.99363345]
[1721416421904,0.00837,67084.0,67082.0,3.19422573]
[1721416422250,0.00837,67084.0,67083.0,2.24328947]
[1721416422451,0.00837,67084.0,67083.0,4.16289973]
[1721416422659,0.00837,67084.0,67083.0,2.58230745]
[1721416422859,0.00837,67084.0,67083.0,1.36479326]
[1721416423088,0.00837,67084.0,67083.0,1.36959345]
[1721416423429,0.00837,67084.0,67083.0,1.75493145]
[1721416423759,0.00837,67084.0,67083.0,2.00493145]
[1721416424004,0.00837,67084.0,67083.0,2.01893145]
[1721416424206,0.00837,67084.0,67083.0,2.44416945]
[1721416424414,0.00837,67084.0,67083.0,2.65987319]
[1721416424587,0.00837,67084.0,67083.0,3.47387319]
[1721416424957,0.00837,67084.0,67083.0,3.45987035]
[1721416425364,0.00837,67084.0,67083.0,3.44587035]
[1721416425572,0.00837,67084.0,67083.0,3.45987035]
[1721416425770,0.00837,67084.0,67083.0,3.40987035]
[1721416425993,0.00837,67084.0,67083.0,3.39587035]
[1721416426194,0.00837,67084.0,67083.0,2.59587035]
[1721416426429,0.00837,67084.0,67083.0,2.32573235]
[1721416426634,0.00837,67084.0,67083.0,3.07173235]
[1721416426873,0.00837,67084.0,67083.0,2.82173235]
[1721416427178,0.00837,67084.0,67083.0,3.18387035]
[1721416427389,0.00837,67084.0,67083.0,3.16987035]
[1721416427592,0.00837,67084.0,67083.0,2.94613321]
[1721416427734,0.00837,67084.0,67083.0,3.36987117]
[1721416427937,0.00837,67084.0,67083.0,3.05773317]
[1721416428307,0.00837,67084.0,67083.0,1.33545717]
[1721416428621,0.00837,67084.0,67083.0,1.09945717]
[1721416428821,0.00837,67084.0,67083.0,1.39759517]
[1721416429080,0.00837,67084.0,67083.0,1.49277299]
[1721416429280,0.00837,67084.0,67083.0,1.46109517]
[1721416429515,0.00837,67084.0,67083.0,1.75923317]
[1721416429795,0.00837,67084.0,67083.0,1.80494417]
[1721416430025,0.00837,67084.0,67083.0,1.81894797]
[1721416430543,0.00837,67084.0,67083.0,1.83294797]
[1721416430807,0.00837,67084.0,67083.0,2.28480928]
[1721416431007,0.00837,67084.0,67083.0,2.18730928]
[1721416431217,0.00837,67084.0,67083.0,1.75544728]
[1721416431668,0.00837,67084.0,67083.0,2.56144728]
[1721416431941,0.00837,67084.0,67083.0,1.74144728]
[1721416432137,0.00837,67084.0,67083.0,1.75544728]
[1721416432835,0.00837,67084.0,67083.0,1.45730928]
[1721416433260,0.00837,67093.0,67088.0,1.043402]
[1721416433460,0.00837,67093.0,67088.0,1.36951728]
[1721416433832,0.00837,67093.0,67088.0,1.07140228]
[1721416434043,0.00837,67093.0,67088.0,0.47517396]
[1721416434264,0.14827,67089.0,67088.0,0.17173522]
[1721416434455,0.14827,67089.0,67088.0,0.32079222]
[1721416434662,0.14827,67089.0,67088.0,0.33479222]
[1721416434877,0.14827,67089.0,67088.0,0.63290722]
[1721416435071,0.14827,67089.0,67088.0,0.93102222]
[1721416435274,0.07297,67089.0,67088.0,0.93102222]
[1721416435831,0.07297,67089.0,67088.0,0.94502222]
[1721416436033,0.07297,67089.0,67088.0,0.93102222]
[1721416436255,0.07297,67089.0,67088.0,0.94402222]
[1721416436664,0.07297,67089.0,67088.0,0.32079222]
[1721416436823,0.15227,67089.0,67088.0,0.14874275]
[1721416437229,0.15227,67089.0,67088.0,0.28482122]
[1721416437433,0.15227,67089.0,67088.0,0.59593622]
[1721416437761,0.15227,67089.0,67088.0,0.63092869]
[1721416437982,0.15227,67089.0,67088.0,0.33281369]
[1721416438199,0.15227,67089.0,67088.0,0.61892869]
[1721416438641,0.15227,67089.0,67088.0,0.58293622]
[1721416439003,0.15227,67089.0,67088.0,0.61892869]
[1721416439203,0.15227,67089.0,67088.0,0.57093622]
[1721416439411,0.15227,67089.0,67088.0,0.58293622]
[1721416439820,0.15227,67089.0,67088.0,0.59593622]
[1721416440024,0.15227,67089.0,67088.0,0.64392869]
[1721416440447,0.15227,67089.0,67088.0,0.64393485]
[1721416440650,0.15227,67089.0,67088.0,0.59594238]
[1721416441064,0.15227,67089.0,67088.0,0.64393485]
[1721416441724,0.15227,67089.0,67088.0,0.59594238]
[1721416442397,0.15227,67089.0,67088.0,0.14877038]
[1721416442947,0.15227,67089.0,67088.0,0.14877201]
[1721416444205,0.16302195,67089.0,67088.0,0.14877201]
[1721416446034,0.16302195,67089.0,67088.0,0.64393648]
[1721416446179,0.16302195,67089.0,67088.0,0.14877442]
[1721416446575,0.16302195,67089.0,67088.0,0.19676689]
[1721416446767,0.16302195,67089.0,67088.0,0.14877442]
[1721416449394,0.16302195,67089.0,67088.0,0.025]
[1721416449609,0.18459989,67089.0,67088.0,0.025]
[1721416449811,0.16302195,67089.0,67088.0,0.025]
[1721416450012,0.15802195,67089.0,67088.0,0.07299247]
[1721416450224,0.15802195,67089.0,67088.0,0.19677194]
[1721416450425,0.15802195,67089.0,67088.0,0.07299247]
[1721416451129,0.15802195,67089.0,67088.0,0.94205996]
[1721416451130,0.00537,67089.0,67088.0,0.94205996]
[1721416451276,0.00537,67089.0,67088.0,0.95208449]
[1721416451679,0.00537,67089.0,67088.0,1.18364102]
[1721416451880,0.00537,67089.0,67088.0,1.46975602]
[1721416452285,0.00537,67089.0,67088.0,1.64382734]
[1721416452624,0.00537,67089.0,67088.0,1.81182766]
[1721416452841,0.00537,67089.0,67088.0,2.08494266]
[1721416453030,0.00537,67089.0,67088.0,2.30264266]
[1721416453231,0.00537,67089.0,67088.0,2.32964266]
[1721416453437,0.00537,67089.0,67088.0,2.31664266]
[1721416453833,0.00537,67089.0,67088.0,2.58064266]
[1721416454242,0.00537,67089.0,67088.0,2.48946787]
[1721416454793,0.00537,67089.0,67088.0,2.50346787]
[1721416455274,0.00537,67089.0,67088.0,1.97365287]
[1721416455430,0.00537,67089.0,67088.0,1.91235287]
[1721416455650,0.00537,67089.0,67088.0,1.60290074]
[1721416455875,0.00537,67089.0,67088.0,1.10943259]
[1721416456700,0.00537,67089.0,67088.0,1.40754759]
[1721416457278,0.00537,67089.0,67088.0,0.20976385]
[1721416457522,0.00537,67089.0,67088.0,0.65693585]
[1721416458508,0.00537,67089.0,67088.0,0.20976385]
[1721416458706,0.08367,67089.0,67088.0,0.31082838]
[1721416458932,0.08367,67089.0,67088.0,0.35884271]
[1721416459059,0.08367,67089.0,67088.0,0.65695771]
[1721416459662,0.08367,67089.0,67088.0,0.64295771]
[1721416459873,0.00537,67089.0,67088.0,0.64295771]
[1721416460073,0.00537,67089.0,67088.0,0.64895771]
[1721416460276,0.09334411,67089.0,67088.0,0.03002453]
[1721416460495,0.3568111,67089.0,67088.0,0.03002453]
[1721416460693,0.3798111,67089.0,67088.0,0.006]
[1721416461048,0.2307561,67089.0,67088.0,0.006]
[1721416461251,0.3798111,67089.0,67088.0,0.006]
[1721416461462,0.3798111,67089.0,67083.0,0.000924]
[1721416461463,0.06230753,67085.0,67083.0,0.000924]
[1721416461713,0.06230753,67085.0,67067.0,0.002694]
[1721416461714,0.00200753,67073.0,67067.0,0.002694]
[1721416461917,0.00200753,67073.0,67065.0,0.010924]
[1721416461918,0.0603,67072.0,67065.0,0.010924]
[1721416462131,0.0603,67070.0,67065.0,0.010924]
[1721416462342,0.02772207,67069.0,67065.0,0.010924]
[1721416462552,0.023,67069.0,67065.0,0.010924]
[1721416462754,0.0277996,67068.0,67065.0,0.010924]
[1721416463174,0.06155677,67067.0,67065.0,0.010924]
[1721416463389,0.06155677,67067.0,67065.0,0.011924]
[1721416463390,0.0880996,67066.0,67065.0,0.011924]
[1721416463598,0.1893996,67066.0,67065.0,0.011924]
[1721416463801,0.00200753,67061.0,67058.0,0.000924]
[1721416464008,0.00200753,67061.0,67059.0,0.0005787]
[1721416464009,0.0880996,67060.0,67059.0,0.0005787]
[1721416464201,0.0880996,67060.0,67059.0,0.0104213]
[1721416464508,0.1110996,67060.0,67058.0,0.000924]
[1721416464723,0.0277996,67059.0,67058.0,0.000924]
[1721416464928,0.023,67059.0,67058.0,0.000924]
[1721416465300,0.0603,67060.0,67058.0,0.000924]
[1721416465502,0.0603,67060.0,67058.0,0.01135899]
[1721416465703,0.0603,67060.0,67058.0,0.00150715]
[1721416466102,0.0603,67060.0,67059.0,0.04799247]
[1721416466308,0.0613,67060.0,67059.0,0.0005787]
[1721416466509,0.0603,67060.0,67059.0,0.0005787]
[1721416466907,0.0613,67060.0,67059.0,0.0005787]
[1721416467375,0.0603,67060.0,67059.0,0.04857117]
[1721416467579,0.00200753,67081.0,67065.0,0.04799247]
[1721416467580,0.0655,67080.0,67065.0,0.04799247]
[1721416467784,0.02777524,67079.0,67075.0,0.04799247]
[1721416467951,0.02777524,67079.0,67066.0,0.15707574]
[1721416467952,0.09454072,67080.0,67069.0,0.149098]
[1721416468182,0.09454072,67080.0,67076.0,0.01018867]
[1721416468301,0.09454072,67080.0,67070.0,0.149097]
[1721416468302,0.07616403,67080.0,67070.0,0.149097]
[1721416468667,0.07616403,67080.0,67071.0,0.00321934]
[1721416468833,0.09162043,67080.0,67075.0,0.001]
[1721416469285,0.09162043,67080.0,67076.0,0.00050311]
[1721416469450,0.09262043,67080.0,67076.0,0.00050311]
[1721416469652,0.09162043,67080.0,67076.0,0.00050311]
[1721416469869,0.07616403,67080.0,67076.0,0.00050311]
[1721416470190,0.07716403,67080.0,67076.0,0.00050311]
[1721416470549,0.07816403,67080.0,67076.0,0.00150311]
[1721416470745,0.14908,67078.0,67076.0,0.00150311]
[1721416470992,0.03527109,67079.0,67076.0,0.00150311]
[1721416470993,0.06957448,67077.0,67076.0,0.00150311]
[1721416471182,0.07716403,67080.0,67076.0,0.001]
[1721416471387,0.18451978,67077.0,67076.0,0.001]
[1721416471546,0.05843778,67077.0,67076.0,0.001]
[1721416472038,0.10766409,67077.0,67076.0,0.002]
[1721416472157,0.07816403,67080.0,67076.0,0.003]
[1721416472366,0.07816403,67080.0,67077.0,0.00049867]
[1721416472565,0.07616403,67080.0,67077.0,0.00049867]
[1721416472749,0.07616403,67080.0,67076.0,0.002]
[1721416472953,0.001,67077.0,67076.0,0.002]
[1721416473787,0.07616403,67080.0,67076.0,0.001]
[1721416474127,0.07616403,67080.0,67077.0,0.01017499]
[1721416474460,0.07716403,67080.0,67077.0,0.001]
[1721416474664,0.12273419,67080.0,67077.0,0.001]
[1721416474873,0.12273419,67080.0,67076.0,0.001]
[1721416475069,0.07716403,67080.0,67076.0,0.001]
[1721416475275,0.07716403,67080.0,67076.0,0.002924]
[1721416475744,0.07716403,67080.0,67076.0,0.001924]
[1721416476071,0.07716403,67080.0,67076.0,0.002924]
[1721416476268,0.07616403,67080.0,67076.0,0.001924]
[1721416476472,0.07817156,67080.0,67076.0,0.002924]
[1721416476732,0.07716403,67080.0,67076.0,0.002924]
[1721416476979,0.07716403,67080.0,67076.0,0.001924]
[1721416477185,0.07816403,67080.0,67076.0,0.002924]
[1721416477301,0.07816403,67080.0,67076.0,0.001924]
[1721416477759,0.07816403,67080.0,67076.0,0.002924]
[1721416478122,0.07816403,67080.0,67076.0,0.001924]
[1721416478329,0.07816403,67080.0,67076.0,0.002924]
[1721416478532,0.03848153,67079.0,67076.0,0.002924]
[1721416478960,0.03733418,67078.0,67076.0,0.001924]
[1721416479136,0.172082,67077.0,67076.0,0.001924]
[1721416479337,0.20751978,67077.0,67076.0,0.001924]
[1721416479537,0.60559568,67077.0,67076.0,0.002924]
[1721416479751,0.30542415,67077.0,67076.0,0.001924]
[1721416479939,0.08626876,67077.0,67076.0,0.001924]
[1721416480334,0.05843778,67077.0,67076.0,0.001924]
[1721416480547,0.05843778,67077.0,67076.0,0.000924]
[1721416480763,0.05943778,67077.0,67076.0,0.000924]
[1721416480998,0.21052731,67077.0,67076.0,0.000924]
[1721416481202,0.20851978,67077.0,67076.0,0.000924]
[1721416481425,0.60292321,67077.0,67076.0,0.000924]
[1721416481654,0.150085,67076.0,67063.0,0.002694]
[1721416481905,0.05921576,67075.0,67063.0,0.002694]
[1721416482117,0.05921576,67075.0,67062.0,0.04799247]
[1721416482360,0.15971893,67075.0,67063.0,0.002694]
[1721416482938,0.15971893,67075.0,67063.0,0.003694]
[1721416483282,0.15971893,67075.0,67064.0,0.0097964]
[1721416483504,0.15971893,67075.0,67058.0,0.000924]
[1721416483505,0.02785912,67074.0,67066.0,0.04799247]
[1721416483718,0.023,67073.0,67066.0,0.04799247]
[1721416484421,0.023,67073.0,67060.0,0.05068647]
[1721416484651,0.0658,67072.0,67063.0,0.001]
[1721416485096,0.0658,67072.0,67062.0,0.04799247]
[1721416485311,0.0658,67072.0,67064.0,0.0097964]
[1721416485519,0.02961694,67071.0,67064.0,0.0097964]
[1721416485747,0.0818,67070.0,67061.0,0.002694]
[1721416485953,0.0818,67070.0,67063.0,0.001]
[1721416486085,0.0818,67070.0,67060.0,0.04799247]
[1721416486288,0.0818,67070.0,67062.0,0.001]
[1721416486777,0.0818,67070.0,67061.0,0.002694]
[1721416486999,0.0818,67070.0,67062.0,0.04799247]
[1721416487000,0.0828,67070.0,67062.0,0.04799247]
[1721416487455,0.02782982,67069.0,67062.0,0.04799247]
[1721416487651,0.10806693,67070.0,67062.0,0.04799247]
[1721416487800,0.02782983,67069.0,67062.0,0.04799247]
[1721416488016,0.02782983,67069.0,67060.0,0.04799247]
[1721416488255,0.023,67068.0,67061.0,0.12382282]
[1721416488455,0.02782983,67067.0,67062.0,0.12651682]
[1721416488657,0.02782983,67067.0,67063.0,0.12382282]
[1721416488862,0.02782983,67067.0,67060.0,0.04799247]
[1721416489040,0.02782983,67067.0,67062.0,0.04799247]
[1721416489607,0.02782983,67067.0,67063.0,0.12438388]
[1721416489810,0.02782983,67067.0,67064.0,0.12382297]
[1721416489937,0.02782983,67067.0,67063.0,0.00056091]
[1721416490142,0.02882983,67067.0,67065.0,0.00055202]
[1721416490341,0.02782983,67066.0,67064.0,0.00055647]
[1721416490541,0.02782983,67066.0,67061.0,0.002]
[1721416490744,0.02782983,67065.0,67062.0,0.1238263]
[1721416490956,0.02785553,67064.0,67063.0,0.12382617]
[1721416491276,0.02785553,67066.0,67063.0,0.12382617]
[1721416491475,0.02785553,67066.0,67062.0,0.04799247]
[1721416491476,0.02785553,67065.0,67064.0,0.12382617]
[1721416491678,0.02785553,67067.0,67062.0,0.003]
[1721416491884,0.02785553,67067.0,67063.0,0.12382924]
[1721416492137,0.02785553,67066.0,67064.0,0.04799247]
[1721416492340,0.02785553,67065.0,67064.0,0.04799247]
[1721416492480,0.001,67067.0,67064.0,0.04799247]
[1721416492676,0.02785553,67066.0,67065.0,0.149109]
[1721416492918,0.02785553,67066.0,67063.0,0.153113]
[1721416493120,0.02785553,67065.0,67064.0,0.04799247]
[1721416493325,0.02785553,67066.0,67064.0,0.04799247]
[1721416493784,0.02785553,67065.0,67064.0,0.04799247]
[1721416494508,0.02785553,67071.0,67064.0,0.04899247]
[1721416494677,0.02785553,67070.0,67064.0,0.04899247]
[1721416494824,0.02785553,67069.0,67064.0,0.001]
[1721416495021,0.02785553,67068.0,67064.0,0.001]
[1721416495223,0.02785553,67067.0,67064.0,0.001]
[1721416495429,0.02785553,67066.0,67064.0,0.001]
[1721416495626,0.02785553,67065.0,67062.0,0.149115]
[1721416495831,0.02785553,67064.0,67063.0,0.12382914]
[1721416496030,0.001,67065.0,67063.0,0.12382914]
[1721416496238,0.001,67065.0,67062.0,0.19710747]
[1721416496239,0.02785553,67064.0,67061.0,0.149117]
[1721416496451,0.09214997,67072.0,67062.0,0.12652314]
[1721416496452,0.02785553,67063.0,67062.0,0.12652314]
[1721416496656,0.001,67066.0,67062.0,0.12382914]
[1721416496984,0.02785553,67065.0,67056.0,0.04799247]
[1721416497175,0.02785553,67065.0,67059.0,0.12383112]
[1721416497442,0.064,67063.0,67059.0,0.13367372]
[1721416497580,0.02741979,67062.0,67060.0,0.12383313]
[1721416497761,0.02741979,67062.0,67059.0,0.0098426]
[1721416497962,0.064,67063.0,67061.0,0.00982412]
[1721416498242,0.02742019,67062.0,67060.0,0.00983336]
[1721416498432,0.02742019,67062.0,67058.0,0.000924]
[1721416498636,0.02742019,67062.0,67059.0,0.12383429]
[1721416498837,0.02742019,67062.0,67060.0,0.12383429]
[1721416499155,0.02742019,67062.0,67058.0,0.000924]
[1721416499296,0.02702448,67062.0,67059.0,0.12383428]
[1721416499522,0.18782914,67063.0,67060.0,0.12383428]
[1721416499723,0.18782914,67063.0,67060.0,0.04799247]
[1721416499950,0.18782914,67063.0,67058.0,0.009924]
[1721416500149,0.18782914,67063.0,67059.0,0.12383435]
[1721416500423,0.21342953,67059.0,67058.0,0.002924]
[1721416502499,0.07717479,67062.0,67058.0,0.000924]
[1721416502732,0.1435,67061.0,67058.0,0.000924]
[1721416502943,0.03732746,67060.0,67058.0,0.000924]
[1721416503145,0.08106865,67060.0,67058.0,0.000924]
[1721416503348,0.03732746,67060.0,67058.0,0.000924]
[1721416503556,0.03732746,67060.0,67058.0,0.001924]
[1721416503557,0.0667421,67059.0,67058.0,0.001924]
[1721416503973,0.25330274,67059.0,67058.0,0.001924]
[1721416504169,0.10418074,67059.0,67058.0,0.001924]
[1721416504972,0.0667421,67059.0,67058.0,0.000924]
[1721416505178,0.01067541,67063.0,67058.0,0.000924]
[1721416505411,0.01067541,67063.0,67058.0,0.01077584]
[1721416505631,0.001,67060.0,67058.0,0.002924]